bitfinex/quotes_SOLUSD_20241126
["timestamp","ask_amount","ask_price","bid_price","bid_amount"]
[1732639381323,21.46712855,231.98,231.9,21.46712855]
[1732639381709,21.46712855,232.0,231.93,21.46712855]
[1732639382323,21.46712855,232.04,231.97,21.46712855]
[1732639382505,25.77642855,232.06,231.97,25.77782855]
[1732639382825,21.46712855,232.0,231.93,21.46712855]
[1732639383004,21.46712855,232.0,231.91,25.77892855]
[1732639383205,0.12549,231.99,231.91,25.77892855]
[1732639384107,23.902374,231.99,231.91,25.77892855]
[1732639384305,23.902374,231.97,231.89,21.46712855]
[1732639384511,0.12549,231.93,231.87,21.46712855]
[1732639385394,0.12549,231.96,231.89,21.46712855]
[1732639385736,0.12549,231.96,231.9,4.3122]
[1732639386517,0.12549,231.96,231.89,21.46712855]
[1732639386518,0.12549,231.96,231.89,25.77942855]
[1732639386817,21.46712855,231.95,231.89,25.77942855]
[1732639386996,23.776884,231.98,231.91,21.46712855]
[1732639388597,21.46712855,231.99,231.92,21.46712855]
[1732639388800,25.77752855,232.0,231.92,21.46712855]
[1732639389223,0.12549,231.99,231.92,21.46712855]
[1732639389522,0.12549,231.99,231.96,21.46712855]
[1732639389700,4.3096,232.04,231.98,21.46712855]
[1732639391101,23.776884,232.03,231.98,21.46712855]
[1732639393324,23.776884,232.04,231.98,21.46712855]
[1732639395506,36.87372855,232.07,232.0,21.46712855]
[1732639395719,4.3088,232.08,232.0,21.46712855]
[1732639396115,7.52216655,232.08,232.0,21.46712855]
[1732639396306,7.52216655,232.08,232.01,13.37203503]
[1732639396825,4.3088,232.08,232.01,13.37203503]
[1732639397026,23.776884,232.07,232.01,13.37203503]
[1732639398205,13.37203503,232.04,231.96,13.37203503]
[1732639398533,13.37203503,232.02,231.95,26.0769]
[1732639398710,13.37203503,232.04,231.96,13.37203503]
[1732639398911,17.68123503,232.06,231.98,13.37203503]
[1732639399222,23.776884,232.05,231.98,13.37203503]
[1732639399440,0.6,232.11,232.0,13.37203503]
[1732639399441,17.68103503,232.08,232.0,13.37203503]
[1732639399604,20.0,232.04,232.0,13.37203503]
[1732639399802,23.776884,232.07,232.0,13.37203503]
[1732639400320,23.776884,232.07,231.98,4.3106]
[1732639400321,13.37203503,232.1,232.02,13.37203503]
[1732639400627,13.37203503,232.08,232.0,13.37203503]
[1732639401130,13.37203503,232.08,232.0,17.68233503]
[1732639401298,17.68083503,232.08,232.0,13.37203503]
[1732639402515,13.37203503,232.06,231.98,13.37203503]
[1732639403334,4.3094,232.05,231.98,13.37203503]
[1732639403514,13.37203503,232.06,231.98,13.37203503]
[1732639403851,17.68123503,232.06,231.98,13.37203503]
[1732639404132,4.3092,232.06,232.0,13.37203503]
[1732639404712,17.68123503,232.06,231.98,13.37203503]
[1732639405211,23.776884,232.1,232.0,13.37203503]
[1732639405422,13.37203503,232.09,232.0,13.37203503]
[1732639406126,13.37203503,232.09,232.0,17.68233503]
[1732639406619,13.37203503,232.09,232.02,13.37203503]
[1732639407020,4.3088,232.08,232.02,13.37203503]
[1732639408839,0.5161833,232.12,232.07,13.37203503]
[1732639409018,0.5161833,232.12,232.02,4.3098]
[1732639409019,0.5161833,232.12,232.09,13.37203503]
[1732639409343,18.19631833,232.12,232.05,13.37203503]
[1732639409834,4.8242833,232.12,232.05,13.37203503]
[1732639410022,0.5161833,232.12,232.07,13.37203503]
[1732639410331,0.5161833,232.12,232.09,13.37203503]
[1732639410908,0.5161833,232.12,232.11,13.37203503]
[1732639413412,0.5161833,232.12,232.09,13.37203503]
[1732639413609,0.5161833,232.12,232.07,13.37203503]
[1732639414516,0.5161833,232.12,232.09,13.37203503]
[1732639415334,0.5161833,232.12,232.07,13.37203503]
[1732639415833,0.5161833,232.12,232.09,13.37203503]
[1732639416721,0.5161833,232.12,232.07,13.37203503]
[1732639416916,0.5161833,232.12,232.09,13.37203503]
[1732639417116,0.5161833,232.12,232.07,13.37203503]
[1732639419014,0.5161833,232.12,232.07,17.68103503]
[1732639420641,0.5161833,232.12,232.06,22.3438]
[1732639421134,0.5161833,232.12,232.06,26.653]
[1732639421712,13.88821833,232.12,232.05,13.37203503]
[1732639421927,13.37203503,232.1,232.01,17.68213503]
[1732639423731,13.37203503,232.1,232.03,13.37203503]
[1732639424422,13.88821833,232.12,232.05,13.37203503]
[1732639424624,0.5161833,232.12,232.05,13.37203503]
[1732639424843,0.5161833,232.12,232.06,13.37203503]
[1732639425235,0.5161833,232.12,232.04,17.68163503]
[1732639425236,18.19631833,232.12,232.04,17.68163503]
[1732639425441,18.19631833,232.12,232.05,13.37203503]
[1732639425643,13.88821833,232.12,232.05,13.37203503]
[1732639425826,18.19631833,232.12,232.05,13.37203503]
[1732639427327,4.8242833,232.12,232.06,13.37203503]
[1732639429026,4.8242833,232.12,232.04,17.68153503]
[1732639429223,13.37203503,232.11,232.04,13.37203503]
[1732639429530,13.37203503,232.09,232.02,13.37203503]
[1732639429834,13.37203503,232.06,231.98,17.68253503]
[1732639430247,13.37203503,232.06,231.99,13.37203503]
[1732639430627,13.37203503,232.07,231.99,13.37203503]
[1732639430940,17.68103503,232.07,231.99,17.68243503]
[1732639431441,13.37203503,232.06,231.99,4.3104]
[1732639431831,13.37203503,232.06,231.98,17.68263503]
[1732639432043,17.68103503,232.07,232.0,13.37203503]
[1732639433437,17.68103503,232.07,232.0,17.68223503]
[1732639433644,4.309,232.07,232.02,13.37203503]
[1732639433855,13.37203503,232.09,232.02,13.37203503]
[1732639434041,23.776884,232.11,232.0,4.3102]
[1732639434042,4.3083,232.11,232.05,13.37203503]
[1732639435239,17.68033503,232.11,232.05,13.37203503]
[1732639437454,0.5161833,232.12,232.1,13.37203503]
[1732639437653,0.5161833,232.12,232.11,25.50902197]
[1732639439451,0.5161833,232.12,232.11,23.8254253]
[1732639440432,0.5161833,232.12,232.11,47.6023093]
[1732639443643,0.5161833,232.12,232.11,41.45721903]
[1732639444358,4.3052,232.28,232.16,23.776884]
[1732639444659,4.3052,232.28,232.21,13.37203503]
[1732639444860,4.3052,232.28,232.24,13.37203503]
[1732639445057,17.67723503,232.28,232.2,13.37203503]
[1732639446064,28.44003503,232.28,232.14,20.0]
[1732639446361,4.3062,232.22,232.16,13.37203503]
[1732639446864,13.37203503,232.19,232.11,13.37203503]
[1732639447042,13.37203503,232.2,232.12,13.37203503]
[1732639447542,4.3062,232.22,232.13,13.37203503]
[1732639447543,13.37203503,232.21,232.13,13.37203503]
[1732639447863,13.37203503,232.21,232.14,13.37203503]
[1732639448166,4.3065,232.21,232.13,13.37203503]
[1732639448370,13.37203503,232.2,232.12,13.37203503]
[1732639448564,17.67853503,232.21,232.13,13.37203503]
[1732639448951,4.3065,232.21,232.14,13.37203503]
[1732639450062,17.67853503,232.21,232.13,13.37203503]
[1732639450562,13.37203503,232.17,232.08,4.3088]
[1732639450740,19.9961,232.21,232.11,13.37203503]
[1732639450741,13.37203503,232.18,232.11,13.37203503]
[1732639450939,13.37203503,232.2,232.13,13.37203503]
[1732639452064,4.3068,232.19,232.13,13.37203503]
[1732639453453,13.37203503,232.18,232.12,20.0]
[1732639453861,13.37203503,232.16,232.09,13.37203503]
[1732639454662,17.67943503,232.16,232.09,17.68063503]
[1732639454955,4.3074,232.16,232.09,17.68063503]
[1732639455166,4.3074,232.16,232.11,13.37203503]
[1732639455646,13.37203503,232.18,232.11,13.37203503]
[1732639455855,4.3071,232.17,232.11,13.37203503]
[1732639456764,4.3071,232.17,232.1,13.37203503]
[1732639457080,4.3071,232.17,232.11,13.37203503]
[1732639457450,4.307,232.18,232.11,13.37203503]
[1732639457668,17.67903503,232.18,232.1,13.37203503]
[1732639458166,13.37203503,232.17,232.1,13.37203503]
[1732639458355,15.0745,232.18,232.0,21.9252]
[1732639458565,13.37203503,232.08,232.0,13.37203503]
[1732639458759,13.37203503,232.06,231.99,13.37203503]
[1732639458966,13.37203503,232.04,231.96,17.68303503]
[1732639459272,13.37203503,232.06,231.99,13.37203503]
[1732639459475,16.3418,232.1,232.05,13.37203503]
[1732639459653,16.3418,232.1,232.06,13.37203503]
[1732639460052,16.3418,232.1,231.99,4.3104]
[1732639460053,16.3418,232.1,232.07,13.37203503]
[1732639460272,34.02113503,232.16,232.09,13.37203503]
[1732639461752,34.02113503,232.16,232.08,13.37203503]
[1732639461953,13.37203503,232.12,232.04,13.37203503]
[1732639462174,31.4175,232.16,232.04,13.37203503]
[1732639462175,13.37203503,232.1,232.04,13.37203503]
[1732639462367,13.37203503,232.12,232.05,13.37203503]
[1732639462570,13.37203503,232.12,232.04,13.37203503]
[1732639463150,13.37203503,232.08,231.96,4.311]
[1732639463469,13.37203503,232.05,231.98,13.37203503]
[1732639463663,13.37203503,232.06,231.99,13.37203503]
[1732639463851,13.37203503,232.07,231.99,13.37203503]
[1732639464359,16.3418,232.06,231.99,13.37203503]
[1732639464777,20.6511,232.06,231.99,13.37203503]
[1732639466367,13.37203503,232.0,231.93,13.37203503]
[1732639466577,13.37203503,232.02,231.95,13.37203503]
[1732639466777,4.3101,232.01,231.95,13.37203503]
[1732639467281,17.68213503,232.01,231.94,13.37203503]
[1732639467458,13.37203503,231.99,231.91,13.37203503]
[1732639467664,13.37203503,231.98,231.91,13.37203503]
[1732639468683,13.37203503,231.97,231.9,13.37203503]
[1732639469064,13.37203503,231.98,231.91,13.37203503]
[1732639469770,17.68293503,231.97,231.9,13.37203503]
[1732639471587,13.37203503,231.94,231.87,13.37203503]
[1732639471883,22.7378,231.96,231.9,13.37203503]
[1732639472184,16.3418,231.96,231.93,13.37203503]
[1732639472493,16.8631,232.02,231.95,13.37203503]
[1732639472494,4.3102,232.01,231.95,13.37203503]
[1732639472785,4.3102,232.01,231.97,13.37203503]
[1732639473480,16.0569,232.02,231.98,13.37203503]
[1732639473683,16.0569,232.02,231.99,13.37203503]
[1732639473982,5.59210334,232.03,232.01,13.37203503]
[1732639474165,16.0569,232.08,231.93,23.776884]
[1732639474365,16.0569,232.08,232.05,13.37203503]
[1732639474568,6.0879,232.12,232.07,13.37203503]
[1732639474760,10.396,232.12,232.06,13.37203503]
[1732639475474,6.0879,232.12,232.07,13.37203503]
[1732639475870,4.308,232.13,232.06,13.37203503]
[1732639476070,4.308,232.13,232.07,13.37203503]
[1732639476567,16.0569,232.15,232.1,13.37203503]
[1732639476769,20.3645,232.15,232.1,13.37203503]
[1732639477192,20.3645,232.15,232.08,13.37203503]
[1732639477703,16.0569,232.15,232.08,13.37203503]
[1732639478574,29.42893503,232.15,232.08,13.37203503]
[1732639479098,20.3645,232.15,232.08,13.37203503]
[1732639479301,33.73653503,232.15,232.0,20.0]
[1732639479603,20.3645,232.15,232.09,13.37203503]
[1732639479896,20.3645,232.15,232.08,13.37203503]
[1732639480672,13.37203503,232.14,232.06,13.37203503]
[1732639480878,13.37203503,232.13,232.06,13.37203503]
[1732639481705,13.37203503,232.13,232.09,20.0]
[1732639482001,13.37203503,232.13,232.06,13.37203503]
[1732639482299,20.3645,232.15,232.08,13.37203503]
[1732639483506,20.3645,232.15,232.09,13.37203503]
[1732639484709,13.37203503,232.13,232.06,13.37203503]
[1732639484884,13.37203503,232.14,232.07,13.37203503]
[1732639485085,33.73653503,232.15,232.08,0.81551144]
[1732639485298,33.73653503,232.15,232.09,0.40636645]
[1732639487082,33.73653503,232.15,232.09,13.77840148]
[1732639487083,20.3645,232.15,232.09,13.77840148]
[1732639487283,20.3645,232.15,232.1,0.15616475]
[1732639487697,33.73653503,232.15,232.1,0.15616475]
[1732639487904,13.37203503,232.13,232.1,0.15616475]
[1732639488205,20.3645,232.15,232.1,0.15616475]
[1732639488712,20.3645,232.15,232.09,13.37203503]
[1732639489391,16.5139,232.21,232.14,13.37203503]
[1732639489582,17.67863503,232.2,232.12,13.37203503]
[1732639489909,13.37203503,232.16,232.09,13.37203503]
[1732639490701,28.44653503,232.18,232.1,13.37203503]
[1732639491698,15.0745,232.18,232.11,13.37203503]
[1732639491912,28.44653503,232.18,232.1,13.37203503]
[1732639493012,16.5139,232.26,232.17,13.37203503]
[1732639493182,16.5139,232.26,232.23,13.37203503]
[1732639494010,20.8194,232.26,232.23,13.37203503]
[1732639494192,20.8194,232.26,232.25,13.37203503]
[1732639494385,4.3044,232.32,232.25,13.37203503]
[1732639494590,4.3044,232.32,232.27,13.37203503]
[1732639494787,4.3044,232.32,232.25,13.37203503]
[1732639496304,4.3044,232.32,232.26,13.37203503]
[1732639496706,4.3044,232.32,232.25,13.37203503]
[1732639496923,23.1219,232.31,232.27,13.37203503]
[1732639497598,20.0,232.28,232.21,13.37203503]
[1732639497997,4.3053,232.27,232.21,13.37203503]
[1732639499390,17.67733503,232.27,232.19,13.37203503]
[1732639500097,28.44063503,232.27,232.19,13.37203503]
[1732639500291,13.37203503,232.25,232.17,13.37203503]
[1732639500485,13.37203503,232.26,232.19,13.37203503]
[1732639500685,15.6686,232.27,232.19,13.37203503]
[1732639501103,20.0,232.24,232.19,13.37203503]
[1732639501309,20.0,232.24,232.1,26.6352]
[1732639501310,4.306,232.23,232.17,13.37203503]
[1732639501507,15.0711,232.23,232.17,13.37203503]
[1732639501809,16.0841,232.21,232.13,13.37203503]
[1732639502003,13.37203503,232.2,232.13,13.37203503]
[1732639502322,13.37203503,232.2,232.05,15.4679]
[1732639502323,13.37203503,232.14,232.05,13.37203503]
[1732639502810,13.37203503,232.14,232.06,13.37203503]
[1732639503198,4.3077,232.14,232.12,13.37203503]
[1732639503409,4.3068,232.19,232.13,13.37203503]
[1732639503601,4.3068,232.19,232.08,13.37203503]
[1732639503602,4.3068,232.19,232.18,13.37203503]
[1732639504119,4.3068,232.19,232.17,13.37203503]
[1732639504493,20.3906,232.21,232.18,13.37203503]
[1732639504800,4.3058,232.24,232.18,13.37203503]
[1732639505002,4.3058,232.24,232.09,23.776884]
[1732639505307,15.0701,232.25,232.2,13.37203503]
[1732639505712,15.0701,232.25,232.12,20.0]
[1732639505713,15.0701,232.25,232.18,13.37203503]
[1732639505921,28.44213503,232.25,232.18,13.37203503]
[1732639506415,15.0701,232.25,232.2,13.37203503]
[1732639507094,15.0701,232.25,232.18,13.37203503]
[1732639507691,28.44213503,232.25,232.18,13.37203503]
[1732639508088,28.44213503,232.25,232.16,13.37203503]
[1732639508697,4.3057,232.25,232.22,13.37203503]
[1732639509119,4.3057,232.25,232.18,13.37203503]
[1732639509509,4.3057,232.25,232.2,13.37203503]
[1732639509708,4.3057,232.25,232.21,13.37203503]
[1732639510099,4.3042,232.33,232.24,13.37203503]
[1732639510316,4.3042,232.33,232.27,13.37203503]
[1732639510724,4.3042,232.33,232.25,13.37203503]
[1732639511428,20.0,232.32,232.25,13.37203503]
[1732639511600,13.37203503,232.29,232.14,15.4679]
[1732639511801,20.0,232.3,232.25,13.37203503]
[1732639512013,28.43673503,232.33,232.25,13.37203503]
[1732639512203,15.0647,232.33,232.27,13.37203503]
[1732639512419,4.3042,232.33,232.29,13.37203503]
[1732639512722,0.5161833,232.34,232.31,13.37203503]
[1732639512907,0.5161833,232.34,232.21,4.3064]
[1732639512908,0.5161833,232.34,232.33,13.37203503]
[1732639514425,0.5161833,232.34,232.32,13.37203503]
[1732639514929,0.5161833,232.34,232.28,13.37203503]
[1732639514930,4.8201833,232.34,232.28,13.37203503]
[1732639515234,0.5161833,232.34,232.3,13.37203503]
[1732639515400,4.8202833,232.34,232.29,13.37203503]
[1732639515599,0.5161833,232.34,232.31,13.37203503]
[1732639516002,0.5161833,232.34,232.32,13.37203503]
[1732639516523,0.5161833,232.34,232.33,13.37203503]
[1732639516708,0.5161833,232.34,232.32,13.37203503]
[1732639517109,0.5161833,232.34,232.33,13.37203503]
[1732639518524,0.5161833,232.34,232.32,13.37203503]
[1732639518917,0.5161833,232.34,232.33,13.37203503]
[1732639519225,0.5161833,232.34,232.32,13.37203503]
[1732639519427,0.5161833,232.34,232.33,13.37203503]
[1732639519603,0.5161833,232.34,232.32,13.37203503]
[1732639520024,0.5161833,232.34,232.33,13.37203503]
[1732639521914,2.38272582,232.45,232.33,13.37203503]
[1732639521915,4.301,232.5,232.37,23.776884]
[1732639522107,4.301,232.5,232.44,13.37203503]
[1732639522610,4.301,232.5,232.47,13.37203503]
[1732639522811,4.301,232.5,232.48,13.37203503]
[1732639523310,4.3002,232.55,232.49,13.37203503]
[1732639523629,4.8159833,232.57,232.54,13.37203503]
[1732639524027,0.5161833,232.57,232.55,13.37203503]
[1732639524233,0.5161833,232.57,232.56,26.74407006]
[1732639524431,0.5161833,232.57,232.56,13.37203503]
[1732639525205,0.5161833,232.57,232.56,37.14891903]
[1732639525932,0.5161833,232.57,232.56,13.37203503]
[1732639526527,0.5161833,232.57,232.56,37.14891903]
[1732639527225,0.5161833,232.57,232.56,13.37203503]
[1732639528706,0.5161833,232.57,232.56,50.52095406]
[1732639529835,0.5161833,232.57,232.56,57.15445406]
[1732639530024,0.5161833,232.57,232.56,12.95026249]
[1732639530208,0.5161833,232.57,232.56,20.00553503]
[1732639530729,0.5161833,232.57,232.56,43.78241903]
[1732639531806,0.5161833,232.57,232.56,20.00553503]
[1732639532106,0.5161833,232.57,232.56,13.37203503]
[1732639533420,0.5161833,232.57,232.55,4.3]
[1732639533636,0.5161833,232.57,232.56,13.37203503]
[1732639533933,0.5161833,232.57,232.55,4.3]
[1732639533934,0.5161833,232.57,232.55,13.37203503]
[1732639534144,0.5161833,232.57,232.56,13.37203503]
[1732639534810,0.5161833,232.57,232.54,17.67223503]
[1732639535119,0.5161833,232.57,232.56,13.37203503]
[1732639535933,0.5161833,232.57,232.56,37.14891903]
[1732639537739,0.5161833,232.57,232.56,41.44881903]
[1732639538918,0.5161833,232.57,232.56,28.076784]
[1732639539116,0.5161833,232.57,232.56,41.44881903]
[1732639539320,0.5161833,232.57,232.56,17.67193503]
[1732639539635,0.5161833,232.57,232.56,37.14891903]
[1732639540915,0.5161833,232.57,232.56,41.44881903]
[1732639541317,0.5161833,232.57,232.56,54.82085406]
[1732639541535,0.5161833,232.57,232.56,47.76558152]
[1732639541843,0.5161833,232.57,232.56,41.44881903]
[1732639542716,0.5161833,232.57,232.56,17.67193503]
[1732639542921,0.5161833,232.57,232.56,4.2999]
[1732639543131,0.5161833,232.57,232.56,13.37203503]
[1732639545237,0.5161833,232.57,232.56,41.44881903]
[1732639546938,0.5161833,232.57,232.56,54.82085406]
[1732639547141,0.5161833,232.57,232.56,57.08551903]
[1732639547322,0.5161833,232.57,232.56,70.45755406]
[1732639547644,0.5161833,232.57,232.56,57.08551903]
[1732639548639,0.5161833,232.57,232.48,10.7532]
[1732639548843,0.5161833,232.57,232.56,13.37203503]
[1732639549237,0.5161833,232.57,232.56,17.67193503]
[1732639549751,0.5161833,232.57,232.54,13.37203503]
[1732639550047,0.5161833,232.57,232.55,13.37203503]
[1732639550749,0.5161833,232.57,232.56,13.37203503]
[1732639551126,0.5161833,232.57,232.56,37.14891903]
[1732639551444,0.5161833,232.57,232.56,41.44881903]
[1732639553045,0.5161833,232.57,232.48,4.3014]
[1732639553249,0.5161833,232.57,232.52,13.37203503]
[1732639553452,0.5161833,232.57,232.56,13.37203503]
[1732639553745,0.5161833,232.57,232.54,13.37203503]
[1732639554227,0.5161833,232.57,232.55,23.776884]
[1732639554550,0.5161833,232.57,232.55,13.37203503]
[1732639555546,0.5161833,232.57,232.55,23.776884]
[1732639555888,0.5161833,232.57,232.51,13.37203503]
[1732639556044,13.37203503,232.56,232.49,13.37203503]
[1732639556241,0.5161833,232.57,232.48,24.3014]
[1732639556548,0.5161833,232.57,232.51,20.0]
[1732639557046,0.5161833,232.57,232.52,23.776884]
[1732639557258,0.5161833,232.57,232.56,23.776884]
[1732639557455,0.5161833,232.57,232.56,54.82085406]
[1732639557632,0.5161833,232.57,232.56,41.44881903]
[1732639557950,0.5161833,232.57,232.56,37.14891903]
[1732639558153,0.5161833,232.57,232.56,41.44881903]
[1732639559842,0.5161833,232.57,232.56,54.82085406]
[1732639560049,0.5161833,232.57,232.56,41.44881903]
[1732639560451,0.5161833,232.57,232.56,54.82085406]
[1732639560635,0.5161833,232.57,232.56,41.44881903]
[1732639561136,0.5161833,232.57,232.56,37.14891903]
[1732639561443,0.5161833,232.57,232.56,13.37203503]
[1732639562265,4.8159833,232.57,232.52,13.37203503]
[1732639562443,0.5161833,232.57,232.52,13.37203503]
[1732639562760,0.5161833,232.57,232.54,13.37203503]
[1732639562932,4.8158833,232.57,232.54,13.37203503]
[1732639563134,18.18791833,232.57,232.5,13.37203503]
[1732639564651,0.5161833,232.57,232.54,13.37203503]
[1732639564857,4.8158833,232.57,232.54,13.37203503]
[1732639565536,0.5161833,232.57,232.54,13.37203503]
[1732639566068,0.5161833,232.57,232.39,12.9557617]
[1732639566069,13.37203503,232.56,232.48,13.37203503]
[1732639566239,13.37203503,232.54,232.46,13.37203503]
[1732639566434,15.5653833,232.57,232.51,13.37203503]
[1732639566435,15.6538,232.53,232.51,13.37203503]
[1732639566742,4.8159833,232.57,232.52,13.37203503]
[1732639566946,4.8159833,232.57,232.56,13.37203503]
[1732639567463,0.5161833,232.57,232.56,13.37203503]
[1732639569642,4.8158833,232.57,232.52,13.37203503]
[1732639570544,15.5652833,232.57,232.5,13.37203503]
[1732639570942,15.5652833,232.57,232.4,4.3029]
[1732639571244,16.58656667,232.56,232.47,13.37203503]
[1732639571451,6.0711,232.53,232.45,13.37203503]
[1732639571837,6.0711,232.53,232.46,13.37203503]
[1732639572038,15.0524,232.52,232.46,13.37203503]
[1732639572345,13.37203503,232.51,232.44,13.37203503]
[1732639572551,3.2128695,232.5,232.46,13.37203503]
[1732639572756,3.2128695,232.51,232.46,13.37203503]
[1732639573266,4.301,232.5,232.46,13.37203503]
[1732639573562,4.301,232.5,232.44,13.37203503]
[1732639573766,13.37203503,232.45,232.37,13.37203503]
[1732639573944,13.37203503,232.42,232.35,13.37203503]
[1732639574271,20.6538,232.4,232.31,13.37203503]
[1732639574447,20.6538,232.4,232.3,13.372035]
[1732639574643,13.37203503,232.36,232.2,19.59503503]
[1732639574941,15.6538,232.4,232.34,13.37203503]
[1732639575147,15.6538,232.4,232.36,13.37203503]
[1732639575347,15.6538,232.4,232.21,10.7661]
[1732639575348,4.3031,232.39,232.35,13.37203503]
[1732639575560,4.3031,232.39,232.36,13.37203503]
[1732639576055,15.0608,232.39,232.33,13.37203503]
[1732639576261,15.0608,232.39,232.34,13.37203503]
[1732639576450,15.0608,232.39,232.24,4.3057]
[1732639576638,6.0711,232.44,232.38,13.37203503]
[1732639576840,6.0711,232.44,232.27,25.0]
[1732639577060,4.3023,232.43,232.41,13.37203503]
[1732639577257,4.3023,232.43,232.33,23.776884]
[1732639577462,6.0711,232.44,232.33,28.080984]
[1732639577669,15.7913,232.46,232.43,13.37203503]
[1732639577964,15.7913,232.46,232.42,13.37203503]
[1732639578165,15.7913,232.46,232.43,13.37203503]
[1732639578460,19.51873503,232.5,232.45,13.37203503]
[1732639578461,4.3016,232.47,232.45,13.37203503]
[1732639578666,6.1467,232.5,232.46,13.37203503]
[1732639578873,4.3014,232.49,232.33,38.841484]
[1732639579242,28.42653503,232.49,232.42,13.37203503]
[1732639579441,15.0545,232.49,232.43,13.37203503]
[1732639579867,15.0545,232.49,232.42,13.37203503]
[1732639580068,28.42653503,232.49,232.42,13.37203503]
[1732639580266,28.42653503,232.49,232.4,23.776884]
[1732639580267,20.0,232.46,232.4,23.776884]
[1732639580470,20.0,232.46,232.41,13.37203503]
[1732639580668,4.3014,232.49,232.46,23.776884]
[1732639580844,15.0545,232.49,232.33,4.3041]
[1732639581044,15.0545,232.49,232.4,23.776884]
[1732639581045,20.0,232.44,232.4,23.776884]
[1732639581342,4.302,232.45,232.37,23.776884]
[1732639581561,4.3012,232.49,232.37,23.776884]
[1732639582269,4.3012,232.49,232.47,23.776884]
[1732639582440,20.0922,232.51,232.47,23.776884]
[1732639582645,20.0922,232.51,232.47,37.14891903]
[1732639582872,20.0922,232.51,232.49,23.776884]
[1732639583170,15.7913,232.51,232.49,37.14891903]
[1732639583764,4.3004,232.54,232.51,23.776884]
[1732639584071,4.3004,232.54,232.5,23.776884]
[1732639584576,4.3004,232.54,232.49,23.776884]
[1732639584942,4.3004,232.54,232.48,13.37203503]
[1732639584943,4.3004,232.54,232.39,10.7555]
[1732639585171,13.37203503,232.53,232.45,13.37203503]
[1732639585349,12.40837327,232.51,232.43,13.37203503]
[1732639586252,13.37203503,232.5,232.42,13.37203503]
[1732639586561,13.37203503,232.48,232.41,23.776884]
[1732639586757,10.0,232.53,232.37,13.37203503]
[1732639586758,13.37203503,232.45,232.37,13.37203503]
[1732639586949,20.0,232.5,232.37,13.37203503]
[1732639586950,13.37203503,232.44,232.37,13.37203503]
[1732639587152,13.37203503,232.46,232.39,13.37203503]
[1732639587341,4.302,232.45,232.39,13.37203503]
[1732639587541,17.67403503,232.45,232.37,13.37203503]
[1732639587772,13.37203503,232.43,232.35,13.37203503]
[1732639588475,13.37203503,232.42,232.35,13.37203503]
[1732639588763,13.37203503,232.43,232.36,13.37203503]
[1732639589069,13.37203503,232.43,232.3,4.3047]
[1732639589070,10.4487,232.45,232.4,13.37203503]
[1732639589259,15.7913,232.46,232.32,13.37203503]
[1732639589260,20.0931,232.46,232.42,13.37203503]
[1732639589776,20.0931,232.46,232.42,23.776884]
[1732639590151,20.0931,232.46,232.42,37.14891903]
[1732639590551,20.0931,232.46,232.42,23.776884]
[1732639591058,20.0931,232.46,232.42,37.14891903]
[1732639591370,4.3012,232.49,232.42,37.14891903]
[1732639591675,17.67323503,232.49,232.42,23.776884]
[1732639591853,13.37203503,232.46,232.31,4.3045]
[1732639592052,13.37203503,232.44,232.36,13.37203503]
[1732639592774,13.37203503,232.42,232.34,13.37203503]
[1732639593070,13.37203503,232.4,232.32,13.37203503]
[1732639593277,13.37203503,232.38,232.3,13.37203503]
[1732639593580,13.37203503,232.36,232.28,13.37203503]
[1732639593780,4.3034,232.37,232.28,13.37203503]
[1732639593965,13.37203503,232.36,232.29,13.37203503]
[1732639594481,13.37203503,232.33,232.26,13.37203503]
[1732639594855,13.37203503,232.34,232.27,13.37203503]
[1732639595256,13.37203503,232.33,232.25,13.37203503]
[1732639595552,13.37203503,232.31,232.24,13.37203503]
[1732639595757,13.37203503,232.33,232.25,13.37203503]
[1732639596061,24.3038,232.35,232.3,13.37203503]
[1732639596455,4.3038,232.35,232.34,13.37203503]
[1732639596674,13.37203503,232.41,232.34,13.37203503]
[1732639596675,5.0,232.47,232.34,13.37203503]
[1732639596873,27.2571,232.39,232.35,13.37203503]
[1732639597198,40.62913503,232.39,232.32,13.37203503]
[1732639597349,27.2571,232.39,232.24,23.776884]
[1732639597555,38.0148,232.39,232.32,13.37203503]
[1732639597754,20.6311,232.39,232.24,28.082584]
[1732639597973,20.6311,232.39,232.38,23.776884]
[1732639598160,20.6311,232.39,232.34,13.37203503]
[1732639598363,20.6311,232.39,232.35,23.776884]
[1732639598562,16.328,232.39,232.38,23.776884]
[1732639598782,4.3028,232.41,232.38,23.776884]
[1732639599660,13.37203503,232.41,232.36,23.776884]
[1732639599863,13.37203503,232.41,232.34,23.776884]
[1732639600066,13.37203503,232.39,232.23,21.5359]
[1732639600383,13.37203503,232.4,232.32,13.37203503]